bitfinex/quotes_BTCUSD_20260315
["timestamp","ask_amount","ask_price","bid_price","bid_amount"]
[1773537906245,0.00022001,70958.0,70949.0,0.07047315]
[1773537906616,0.07068462,70958.0,70944.0,0.07047734]
[1773537906863,0.06372592,70957.0,70944.0,0.07047734]
[1773537908123,0.06512592,70957.0,70944.0,0.07047734]
[1773537908505,0.0704662,70956.0,70944.0,0.07047734]
[1773537908671,0.06372592,70955.0,70944.0,0.07047734]
[1773537915026,0.13419347,70955.0,70944.0,0.07047734]
[1773537915227,0.07068537,70957.0,70945.0,0.06496971]
[1773537918607,0.00036711,70965.0,70947.0,0.05957631]
[1773537918731,0.00036711,70965.0,70948.0,0.06496971]
[1773537918931,0.00036711,70965.0,70950.0,0.06496971]
[1773537919464,0.07190444,70968.0,70956.0,0.06496971]
[1773537919465,5e-05,70968.0,70956.0,0.06496971]
[1773537919786,5e-05,70968.0,70958.0,0.06496971]
[1773537920539,5e-05,70968.0,70959.0,0.07046322]
[1773537920540,0.00015779,70968.0,70959.0,0.07046322]
[1773537922680,0.00022001,70966.0,70959.0,0.07046322]
[1773537922905,0.07045726,70965.0,70952.0,0.06581894]
[1773537923116,0.07045726,70965.0,70952.0,0.0014]
[1773537923117,0.06974271,70964.0,70952.0,0.0014]
[1773537923466,0.06974271,70964.0,70951.0,0.0001347]
[1773537925027,0.06974271,70962.0,70951.0,0.0001347]
[1773537927039,0.06974271,70962.0,70944.0,0.07047798]
[1773537927040,0.06974271,70960.0,70944.0,0.07047798]
[1773537928072,0.0014,70959.0,70944.0,0.07047798]
[1773537928278,0.0014,70959.0,70944.0,0.07187798]
[1773537928602,0.0014,70959.0,70944.0,0.07047798]
[1773537928808,0.07114271,70959.0,70944.0,0.18419158]
[1773537929427,0.07114271,70959.0,70946.0,0.1123136]
[1773537929428,0.07046421,70958.0,70946.0,0.1123136]
[1773537931208,0.07046421,70958.0,70948.0,0.1123136]
[1773537933277,0.07046421,70958.0,70949.0,0.1123136]
[1773537938030,0.07186421,70959.0,70949.0,0.18278648]
[1773537938268,0.07046421,70959.0,70950.0,0.06581894]
[1773537939873,0.07046421,70959.0,70949.0,0.1123136]
[1773537940283,0.06974271,70958.0,70948.0,0.1123136]
[1773537941496,0.06974271,70958.0,70946.0,0.0014]
[1773537942050,0.07046521,70957.0,70948.0,0.0002]
[1773537944395,0.06974271,70956.0,70945.0,0.1829904]
[1773537946439,0.07046719,70955.0,70945.0,0.1829904]
[1773537947575,0.07046719,70955.0,70943.0,0.1125495]
[1773537947887,0.06974271,70954.0,70942.0,0.00052031]
[1773537948296,0.0014,70953.0,70942.0,0.00052031]
[1773537948696,0.07047017,70952.0,70942.0,0.00052031]
[1773537948857,0.07047017,70952.0,70940.0,0.0002]
[1773537948858,0.07047017,70952.0,70940.0,0.0016]
[1773537949055,0.06974271,70951.0,70940.0,0.0016]
[1773537949456,0.06974271,70951.0,70940.0,0.0002]
[1773537950716,0.07047216,70950.0,70940.0,0.0002]
[1773537951270,0.07047216,70950.0,70942.0,0.0002]
[1773537952768,0.07047216,70951.0,70942.0,0.0002]
[1773537954003,0.06867865,70950.0,70937.0,0.0002]
[1773537955053,0.07047315,70949.0,70937.0,0.0002]
[1773537956191,0.1391518,70949.0,70937.0,0.0002]
[1773537957322,0.06867865,70948.0,70937.0,0.0002]
[1773537957815,0.0014,70947.0,70935.0,0.07149252]
[1773537958194,0.0014,70947.0,70935.0,0.07134379]
[1773537958749,0.0014,70947.0,70937.0,0.0002]
[1773537959454,0.07047613,70946.0,70937.0,0.0002]
[1773537965657,0.0014,70947.0,70937.0,0.0002]
[1773537965983,0.0014,70948.0,70937.0,0.13898909]
[1773537966506,0.0014,70948.0,70938.0,0.06830486]
[1773537967314,0.0014,70948.0,70937.0,0.0002]
[1773537974367,0.07047514,70947.0,70937.0,0.07068478]
[1773537974702,0.07047514,70947.0,70937.0,0.13898964]
[1773537979804,0.07069515,70947.0,70937.0,0.13898964]
[1773537981738,0.07101415,70947.0,70937.0,0.13898964]
[1773537985734,0.07101415,70947.0,70937.0,0.07068478]
[1773537993914,0.07241415,70947.0,70937.0,0.07068478]
[1773537998820,0.07101415,70947.0,70937.0,0.07068478]
[1773537999321,0.13733154,70947.0,70935.0,0.07068685]
[1773537999543,0.06491739,70946.0,70935.0,0.0002]
[1773537999683,0.06487739,70946.0,70935.0,0.0002]
[1773538001431,0.07047713,70945.0,70935.0,0.0002]
[1773538001781,0.07065313,70945.0,70935.0,0.0002]
[1773538001982,0.06491739,70944.0,70935.0,0.0002]
[1773538002955,0.06509339,70944.0,70935.0,0.0002]
[1773538003955,0.07047911,70943.0,70935.0,0.0002]
[1773538004906,0.07065511,70943.0,70935.0,0.0002]
[1773538005359,0.000176,70943.0,70935.0,0.0002]
[1773538020865,0.000176,70943.0,70935.0,0.07068666]
[1773538023886,0.000176,70943.0,70935.0,0.0002]
[1773538025192,0.000176,70943.0,70935.0,0.07068702]
[1773538029665,0.07069614,70946.0,70935.0,0.07068702]
[1773538042304,0.07069614,70946.0,70935.0,0.07103802]
[1773538043981,0.07051785,70946.0,70935.0,0.07103802]
[1773538044180,0.07051785,70946.0,70935.0,0.000551]
[1773538047672,0.07191785,70946.0,70935.0,0.000551]
[1773538051145,0.07191785,70946.0,70936.0,0.06536438]
[1773538051282,0.07191785,70946.0,70936.0,0.06571538]
[1773538052245,0.06319111,70956.0,70936.0,0.06571538]
[1773538052483,0.00022001,70962.0,70941.0,0.11268442]
[1773538052679,0.07068139,70961.0,70947.0,0.11268442]
[1773538052850,0.07068139,70961.0,70952.0,0.07047017]
[1773538053464,0.07068139,70961.0,70952.0,0.07056637]
[1773538056239,0.00022001,70961.0,70953.0,0.06536438]
[1773538056438,0.00022001,70962.0,70953.0,0.06536438]
[1773538057351,0.00022001,70962.0,70954.0,0.13583257]
[1773538058276,0.00022001,70962.0,70954.0,0.07046819]
[1773538058497,0.00022001,70962.0,70955.0,0.06536438]
[1773538059218,0.07068036,70962.0,70955.0,0.06536438]
[1773538064116,0.07068036,70962.0,70952.0,9.62e-05]
[1773538064321,0.07068036,70962.0,70952.0,0.0014]
[1773538064633,0.06319111,70961.0,70947.0,0.00145571]
[1773538064821,0.0014,70960.0,70947.0,0.00145571]
[1773538065024,0.0014,70960.0,70947.0,5.571e-05]
[1773538065229,0.0014,70960.0,70947.0,0.00145571]
[1773538065433,0.07046322,70959.0,70947.0,0.00145571]
[1773538067516,0.07186322,70959.0,70947.0,0.00145571]
[1773538067998,0.07186322,70959.0,70947.0,0.00165571]
[1773538070307,0.13147143,70959.0,70947.0,0.00025571]
[1773538070744,0.07186322,70959.0,70945.0,0.0015274]
[1773538070871,0.05960821,70958.0,70944.0,0.0002]
[1773538072382,0.06087015,70956.0,70944.0,0.0002]
[1773538074523,0.13133734,70955.0,70944.0,0.0002]
[1773538074724,0.06087015,70954.0,70944.0,0.0002]
[1773538074900,0.0014,70953.0,70944.0,0.0002]
[1773538077461,0.07047017,70952.0,70944.0,0.0002]
[1773538101177,0.07069018,70952.0,70944.0,0.0002]
[1773538114729,0.07069018,70952.0,70942.0,0.00035231]
[1773538114929,0.06262491,70951.0,70942.0,0.00035231]
[1773538115086,0.06262491,70951.0,70942.0,0.00031231]
[1773538115270,0.06258491,70951.0,70942.0,0.00031231]
[1773538115487,0.07069018,70952.0,70942.0,0.00031231]
[1773538117554,0.06262491,70951.0,70942.0,0.00031231]
[1773538119573,0.07047216,70950.0,70942.0,0.00031231]
[1773538120878,0.07047216,70950.0,70942.0,0.00051231]
[1773538128885,0.06379721,70949.0,70942.0,0.00051231]
[1773538130087,0.07047415,70948.0,70942.0,0.00051231]
[1773538130266,0.06379721,70946.0,70942.0,0.00051231]
[1773538132153,0.07047713,70945.0,70942.0,0.00051231]
[1773538134098,0.07047713,70945.0,70938.0,0.0001274]
[1773538134296,0.06347,70942.0,70938.0,0.0001274]
[1773538135217,0.07047911,70943.0,70938.0,0.0001274]
[1773538135626,0.06342357,70942.0,70930.0,0.11301245]
[1773538135829,0.06342357,70939.0,70930.0,0.0003274]
[1773538136299,0.07048408,70938.0,70930.0,0.0003274]
[1773538140111,0.06354105,70937.0,70930.0,0.0003274]
[1773538140339,0.06354105,70937.0,70924.0,0.0005524]
[1773538140520,0.05959347,70934.0,70916.0,0.0001274]
[1773538140723,0.07048408,70938.0,70916.0,0.0001274]
[1773538140724,0.06326485,70929.0,70916.0,0.0001274]
[1773538140929,0.06326485,70927.0,70916.0,0.0001274]
[1773538142921,0.070496,70926.0,70916.0,0.0001274]
[1773538143410,0.06326485,70925.0,70916.0,0.0001274]
[1773538143612,0.070496,70926.0,70916.0,0.0001274]
[1773538143613,0.0014,70924.0,70916.0,0.0001274]
[1773538143766,0.06466485,70924.0,70916.0,0.0001274]
[1773538144980,0.07049899,70923.0,70916.0,0.0001274]
[1773538146588,0.06326485,70922.0,70916.0,0.0001274]
[1773538146850,0.06326485,70922.0,70909.0,0.0001274]
[1773538147259,0.06326485,70920.0,70909.0,0.0001274]
[1773538147888,0.06326485,70919.0,70916.0,0.0002]
[1773538148090,0.0014,70918.0,70916.0,0.0002]
[1773538148317,0.0014,70918.0,70912.0,0.0001269]
[1773538148318,0.06466485,70918.0,70912.0,0.0001269]
[1773538148664,0.06472049,70918.0,70912.0,0.0001269]
[1773538149206,0.07050495,70917.0,70912.0,0.0001269]
[1773538153457,0.1336698,70917.0,70912.0,0.0001269]
[1773538155154,0.1336698,70917.0,70912.0,0.0003269]
[1773538156519,0.0630014,70916.0,70908.0,0.0002]
[1773538157198,0.07050495,70917.0,70908.0,0.0002]
[1773538161055,0.07050495,70917.0,70903.0,0.07051887]
[1773538162709,0.07050495,70917.0,70908.0,0.0002]
[1773538164080,0.05190495,70917.0,70908.0,0.0002]
[1773538165514,0.0014,70917.0,70908.0,0.0002]
[1773538166777,0.00122161,70917.0,70908.0,0.0002]
[1773538166973,0.00145564,70918.0,70908.0,0.0002]
[1773538167399,0.07050495,70917.0,70908.0,0.0002]
[1773538169794,0.07072496,70917.0,70908.0,0.0002]
[1773538170035,1e-07,70916.0,70908.0,0.0002]
[1773538177040,1e-07,70916.0,70901.0,0.0002]
[1773538177244,0.0615748,70916.0,70901.0,0.0002]
[1773538179211,0.07050694,70915.0,70901.0,0.0002]
[1773538179438,0.0615747,70914.0,70901.0,0.0002]
[1773538179576,0.06139629,70914.0,70901.0,0.0002]
[1773538183346,0.07050893,70913.0,70901.0,0.0002]
[1773538183510,0.0014,70912.0,70901.0,0.0002]
[1773538184178,0.00022001,70917.0,70902.0,0.02651943]
[1773538184313,0.00162001,70917.0,70902.0,0.02651943]
[1773538184538,0.07212522,70917.0,70902.0,0.02651943]
[1773538184928,0.07072522,70917.0,70902.0,0.02651943]
[1773538185182,0.07212522,70917.0,70902.0,0.02651943]
[1773538185478,0.07212522,70917.0,70903.0,0.07051887]
[1773538185683,0.07072522,70917.0,70903.0,0.07051887]
[1773538187215,0.07072522,70917.0,70903.0,0.09688236]
[1773538189217,0.00071239,70924.0,70903.0,0.07051887]
[1773538189413,0.07063151,70931.0,70908.0,0.16854783]
[1773538189616,0.07063151,70931.0,70909.0,0.02764523]
[1773538190239,0.07063151,70931.0,70911.0,0.02618731]
[1773538190461,0.07063151,70931.0,70913.0,0.02618731]
[1773538191253,0.07063151,70931.0,70914.0,0.07050793]
[1773538191585,0.07063151,70931.0,70915.0,0.0275292]
[1773538192553,0.07048507,70937.0,70921.0,0.00079248]
[1773538192928,0.07048507,70937.0,70922.0,0.0014]
[1773538193134,0.07048507,70937.0,70923.0,0.00058662]
[1773538193379,0.07048507,70937.0,70924.0,0.07049799]
[1773538193579,0.07048507,70937.0,70924.0,0.07108461]
[1773538193735,0.07100007,70937.0,70924.0,0.07108461]
[1773538196113,0.07122008,70937.0,70924.0,0.07108461]
[1773538200107,0.00073501,70937.0,70924.0,0.07108461]
[1773538200332,0.07122026,70937.0,70924.0,0.07108461]
[1773538202142,0.07122026,70937.0,70924.0,0.07049799]
[1773538204988,0.06278396,70936.0,70912.0,0.07050992]
[1773538205185,0.0014,70935.0,70911.0,0.07050992]
[1773538205331,0.0014,70935.0,70913.0,0.0014]
[1773538205332,0.06278396,70934.0,70913.0,0.0014]
[1773538205518,0.06278396,70934.0,70913.0,0.00136]
[1773538205872,0.06314736,70934.0,70913.0,0.00136]
[1773538206016,0.07048905,70933.0,70914.0,0.07190707]
[1773538206376,0.06278396,70932.0,70914.0,0.07050707]
[1773538206536,0.06278396,70932.0,70914.0,0.0014]
[1773538206938,0.06314736,70932.0,70914.0,0.0014]
[1773538209106,0.06278396,70930.0,70923.0,0.0002]
[1773538209282,0.06278396,70928.0,70923.0,0.0002]
[1773538209890,0.06314736,70928.0,70923.0,0.0002]
[1773538211114,0.06278396,70926.0,70923.0,0.0002]
[1773538211496,0.06278396,70926.0,70915.0,0.07070642]
[1773538212972,0.070497,70925.0,70915.0,0.07070642]
[1773538214130,0.0707088,70925.0,70915.0,0.07070642]
[1773538215322,0.06278396,70924.0,70915.0,0.07070642]
[1773538215911,0.06299576,70924.0,70915.0,0.07070642]
[1773538216118,0.06299576,70924.0,70915.0,0.0002]
[1773538217065,0.06299576,70924.0,70910.0,0.0014]
[1773538217286,0.06278396,70922.0,70910.0,0.0014]
[1773538217863,0.06278396,70922.0,70909.0,0.07071259]
[1773538218065,0.06299576,70922.0,70909.0,0.07211259]
[1773538219177,0.07050097,70921.0,70909.0,0.07211259]
[1773538219393,0.06278396,70920.0,70909.0,0.07211259]
[1773538219687,0.06278396,70920.0,70909.0,0.0016]
[1773538220033,0.06278396,70920.0,70910.0,0.0014]
[1773538220034,0.06299576,70920.0,70910.0,0.0014]
[1773538220153,0.06299576,70920.0,70907.0,0.0002]
[1773538221397,0.06278396,70917.0,70907.0,0.0002]
[1773538222920,0.06278396,70917.0,70908.0,0.0002]
[1773538223293,0.07050595,70916.0,70908.0,0.0002]
[1773538224876,0.13328991,70916.0,70908.0,0.0002]
[1773538225097,0.06240772,70915.0,70903.0,8.107e-05]
[1773538225288,0.06240772,70915.0,70900.0,0.00035]
[1773538225496,0.06240772,70913.0,70900.0,0.00045777]
[1773538226041,0.0014,70912.0,70900.0,0.00045777]
[1773538226316,0.06217883,70911.0,70897.0,0.01071598]
[1773538226521,0.06217883,70911.0,70897.0,0.0110754]
[1773538226680,0.06217883,70911.0,70897.0,0.08300011]
[1773538227826,0.07051191,70910.0,70897.0,0.08300011]
[1773538230998,0.13269074,70910.0,70897.0,0.08300011]
[1773538231718,0.06217883,70909.0,70897.0,0.08300011]
[1773538235128,0.0705139,70908.0,70897.0,0.08300011]
[1773538237999,0.13269273,70909.0,70897.0,0.08300011]
[1773538238000,0.06217883,70909.0,70897.0,0.08300011]
[1773538238767,0.06217883,70909.0,70897.0,0.0124754]
[1773538239100,0.06217883,70909.0,70897.0,0.08299969]
[1773538240226,0.0705139,70908.0,70897.0,0.08299969]
[1773538240523,0.13269273,70908.0,70897.0,0.08299969]
[1773538242164,0.06217883,70907.0,70897.0,0.0124754]
[1773538242338,0.06217883,70905.0,70897.0,0.0124754]
[1773538243394,0.07043484,70906.0,70897.0,0.08299998]
[1773538248441,0.06217883,70909.0,70897.0,0.08299998]
[1773538248999,0.06239884,70909.0,70897.0,0.08299998]
[1773538250549,0.06217883,70907.0,70897.0,0.0124754]
[1773538252614,0.13269472,70906.0,70897.0,0.0110754]
[1773538254883,0.13269472,70906.0,70897.0,0.08159979]
[1773538255379,0.0705139,70908.0,70898.0,0.11238593]
[1773538256353,0.0001592,70910.0,70899.0,0.07052285]
[1773538256553,0.0001592,70910.0,70899.0,0.18290878]
[1773538256757,0.06217883,70909.0,70899.0,0.11378593]
[1773538257281,0.06217883,70909.0,70899.0,0.0014]
[1773538259660,0.07051349,70909.0,70900.0,0.07052186]
[1773538259882,0.06217883,70908.0,70900.0,0.07052186]
[1773538260285,0.0001592,70910.0,70900.0,0.07052186]
[1773538260590,0.07067138,70910.0,70900.0,0.07052186]
[1773538262419,0.0001592,70910.0,70900.0,0.07052186]
[1773538262631,0.00037921,70910.0,70900.0,0.07052186]
[1773538264871,0.0708921,70910.0,70900.0,0.07052186]
[1773538268447,0.0708921,70910.0,70899.0,0.18430796]
[1773538268688,0.0708921,70910.0,70893.0,0.0002]
[1773538268689,0.05635658,70909.0,70893.0,0.0002]
[1773538268889,0.05965652,70900.0,70882.0,0.07053941]
[1773538269101,0.05615659,70899.0,70883.0,0.07053848]
[1773538269275,0.05615659,70899.0,70882.0,0.07193941]
[1773538269615,0.05615659,70899.0,70881.0,0.0014]
[1773538269991,0.05615659,70899.0,70882.0,0.07053971]
[1773538270369,0.07052385,70898.0,70881.0,0.07054076]
[1773538270772,0.07052385,70898.0,70889.0,0.0002]
[1773538274645,0.07052385,70898.0,70883.0,0.0705386]
[1773538274847,0.05635658,70897.0,70883.0,0.0705386]
[1773538275051,0.05635658,70897.0,70884.0,0.07053753]
[1773538275428,0.05635658,70897.0,70883.0,0.0705386]
[1773538275429,0.07052584,70896.0,70883.0,0.0705386]
[1773538277828,0.07052584,70896.0,70886.0,0.0002938]
[1773538278238,0.07052584,70896.0,70878.0,0.07054372]
[1773538278239,0.02409884,70889.0,70879.0,0.0001265]
[1773538278414,0.05775658,70888.0,70879.0,0.07066907]
[1773538279841,0.07053479,70887.0,70879.0,0.07066907]
[1773538280517,0.07053479,70887.0,70879.0,0.0001265]
[1773538280937,0.12725053,70887.0,70878.0,0.07074325]
[1773538281112,0.12725053,70887.0,70878.0,0.05074325]
[1773538282318,0.12725053,70887.0,70877.0,0.07054439]
[1773538282742,0.07089395,70887.0,70877.0,0.07054439]
[1773538283558,0.07089395,70887.0,70876.0,0.07054574]
[1773538284271,0.0014,70886.0,70876.0,0.07054574]
[1773538284785,0.07053678,70885.0,70876.0,0.07074574]
[1773538285001,0.0233187,70884.0,70864.0,0.10165102]
[1773538285235,0.05965652,70880.0,70865.0,0.07134506]
[1773538285366,0.05965652,70875.0,70859.0,0.0014]
[1773538285572,0.05965652,70871.0,70859.0,0.0014]
[1773538285810,0.05965652,70871.0,70861.0,0.0002]
[1773538286217,0.05965652,70871.0,70857.0,0.0726251]
[1773538286218,0.05965652,70871.0,70857.0,0.0706251]
[1773538287883,0.05965652,70867.0,70853.0,0.00035275]
[1773538288102,0.07055171,70871.0,70854.0,0.05898217]
[1773538288103,0.0014,70871.0,70854.0,0.05898217]
[1773538288659,0.0014,70871.0,70853.0,0.07092122]
[1773538288660,0.0014,70873.0,70856.0,0.05898217]
[1773538289061,0.07054773,70874.0,70856.0,0.05898217]
[1773538289288,0.0014,70873.0,70856.0,0.05898217]
[1773538289826,0.07054275,70879.0,70857.0,0.07056465]
[1773538290031,0.21006645,70879.0,70858.0,0.05898217]
[1773538290236,0.0014,70876.0,70858.0,0.05898217]
[1773538290586,0.1395237,70879.0,70858.0,0.05898217]
[1773538290794,0.07074706,70895.0,70858.0,0.05898217]
[1773538290795,0.07053392,70888.0,70869.0,0.05965652]
[1773538290937,0.0711142,70887.0,70870.0,0.06038217]
[1773538292395,0.0711142,70887.0,70872.0,0.05898217]
[1773538295199,0.0711142,70887.0,70880.0,6e-05]
[1773538295598,0.00057917,70887.0,70880.0,6e-05]
[1773538296008,0.07111439,70887.0,70880.0,6e-05]
[1773538297749,0.07111439,70887.0,70877.0,0.07054474]
[1773538298096,0.07111439,70887.0,70877.0,0.12718657]
[1773538298971,0.07251439,70887.0,70877.0,0.12718657]
[1773538300217,0.07251439,70887.0,70877.0,0.12738657]
[1773538301799,0.07251439,70887.0,70877.0,0.07074474]
[1773538301974,0.07251439,70887.0,70873.0,0.07054809]
[1773538302817,0.07251439,70887.0,70872.0,0.07054872]
[1773538303923,0.07111439,70887.0,70873.0,0.05664183]
[1773538304127,0.07088554,70889.0,70873.0,0.05664183]
[1773538304374,0.07088554,70889.0,70873.0,0.05700099]
[1773538304512,0.07228554,70889.0,70873.0,0.05700099]
[1773538305282,0.0705288,70894.0,70873.0,0.05700099]
[1773538305283,1e-08,70895.0,70880.0,0.05664183]
[1773538305658,1e-08,70895.0,70879.0,0.05965652]
[1773538305659,1e-08,70895.0,70882.0,0.05664183]
[1773538305860,1e-08,70895.0,70883.0,0.0014]
[1773538306023,1e-08,70895.0,70886.0,0.05664183]
[1773538308479,1e-08,70895.0,70888.0,0.05664183]
[1773538308656,1e-08,70895.0,70890.0,0.05664183]
[1773538309461,1e-08,70895.0,70892.0,0.05664183]
[1773538310216,1e-08,70895.0,70892.0,0.05658183]
[1773538310350,1e-08,70895.0,70890.0,0.07053094]
[1773538310938,1e-08,70895.0,70884.0,0.0705371]
[1773538312470,1e-08,70895.0,70876.0,0.12938721]
[1773538312471,1e-08,70895.0,70877.0,0.07054474]
[1773538312684,1e-08,70895.0,70878.0,0.06316723]
[1773538313073,1e-08,70895.0,70879.0,0.0014]
[1773538313473,1e-08,70895.0,70878.0,0.06176723]
[1773538313674,1e-08,70895.0,70879.0,0.0014]
[1773538314303,1e-08,70895.0,70878.0,0.06176723]
[1773538314503,1e-08,70895.0,70879.0,0.0014]
[1773538314820,1e-08,70895.0,70879.0,0.07054275]
[1773538314972,1e-08,70895.0,70879.0,0.07194275]
[1773538316805,1e-08,70895.0,70879.0,0.13370998]
[1773538317449,1e-08,70895.0,70880.0,0.06176723]
[1773538321875,1e-08,70895.0,70881.0,0.07054076]
[1773538322171,1e-08,70895.0,70881.0,0.13230799]
[1773538322719,1e-08,70895.0,70882.0,0.06176723]
[1773538325350,6e-05,70890.0,70883.0,0.132306]
[1773538330602,6e-05,70890.0,70883.0,0.132506]
[1773538333555,6e-05,70890.0,70884.0,0.06176723]
[1773538333757,0.00022001,70902.0,70884.0,0.06176723]
[1773538334055,0.0014,70900.0,70884.0,0.06176723]
[1773538334439,0.07192283,70901.0,70884.0,0.06176723]
[1773538334759,0.07188283,70901.0,70886.0,0.06176723]
[1773538334909,0.07048283,70901.0,70886.0,0.06176723]
[1773538335105,0.07188283,70901.0,70886.0,0.06176723]
[1773538335541,0.07188283,70901.0,70888.0,0.06176723]
[1773538335995,0.07048283,70901.0,70888.0,0.06176723]
[1773538336178,0.07051758,70905.0,70891.0,0.02250833]
[1773538336320,0.07051758,70905.0,70892.0,0.06176723]
[1773538336527,0.00022001,70910.0,70892.0,0.06316723]
[1773538336737,0.07050855,70914.0,70892.0,0.06316723]
[1773538336935,0.08356682,70910.0,70893.0,0.0014]
[1773538337213,0.02387741,70909.0,70893.0,0.0014]
[1773538337563,0.0705139,70908.0,70888.0,0.06176723]
[1773538337770,0.02387741,70907.0,70888.0,0.06176723]
[1773538337973,0.02387741,70907.0,70889.0,0.0014]
[1773538338434,0.0014,70906.0,70889.0,0.0014]
[1773538339301,0.0014,70906.0,70888.0,0.06176723]
[1773538339615,0.07051788,70904.0,70885.0,0.07053581]
[1773538339931,0.07051788,70904.0,70885.0,0.13230304]
[1773538340419,0.07051788,70904.0,70886.0,0.06176723]
[1773538340615,0.07051788,70904.0,70886.0,0.06316723]
[1773538341822,0.07051788,70904.0,70886.0,0.13230204]
[1773538342715,0.0014,70903.0,70886.0,0.13230204]
[1773538343837,0.0014,70903.0,70887.0,0.05830118]
[1773538344139,0.07051987,70902.0,70887.0,0.12853757]
[1773538345448,0.07051987,70902.0,70887.0,0.12838883]
[1773538345830,0.0014,70901.0,70887.0,0.12838883]
[1773538346235,0.07052186,70900.0,70889.0,0.00035257]
[1773538347556,0.07052186,70900.0,70889.0,0.05865375]
[1773538348427,0.07192186,70900.0,70889.0,0.05865375]
[1773538350136,0.07192186,70900.0,70889.0,0.058505]
[1773538350699,0.07192186,70900.0,70889.0,0.05835625]
[1773538353471,0.07192186,70900.0,70889.0,0.05869555]
[1773538353675,0.07192186,70900.0,70889.0,0.05889555]
[1773538356471,0.07192186,70900.0,70889.0,0.00059437]
[1773538357578,0.07192186,70900.0,70889.0,0.00029687]
[1773538358236,0.07192186,70900.0,70890.0,0.05830118]
[1773538358438,0.07052186,70900.0,70890.0,0.05830118]
[1773538358615,0.0014,70899.0,70890.0,0.05830118]
[1773538359567,0.0014,70899.0,70890.0,0.05839805]
[1773538361091,0.07052385,70898.0,70890.0,0.05839805]
[1773538361801,0.07052385,70898.0,70886.0,0.11266672]
[1773538362099,0.07052385,70898.0,70881.0,0.07091072]
[1773538362246,0.07052385,70898.0,70882.0,0.07053952]
[1773538362899,0.07052385,70898.0,70889.0,0.0002]
[1773538363070,0.09274485,70898.0,70889.0,0.0002]
[1773538366613,0.02287799,70897.0,70881.0,0.0003703]
[1773538366987,0.05968941,70893.0,70881.0,0.0003703]
[1773538367191,0.07052783,70894.0,70881.0,0.0003703]
[1773538367666,0.0014,70893.0,70881.0,0.0003703]
[1773538369352,0.07052982,70892.0,70881.0,0.0003703]
[1773538372254,0.07052982,70892.0,70881.0,3.03e-05]
[1773538375055,0.05968941,70891.0,70880.0,3.03e-05]
[1773538375910,0.07052982,70892.0,70880.0,3.03e-05]
[1773538376059,0.07052982,70892.0,70880.0,0.05696201]
[1773538376771,0.0014,70891.0,70880.0,0.05696201]
[1773538376971,0.07052982,70892.0,70880.0,0.05696201]
[1773538377172,0.0014,70891.0,70880.0,0.05696201]
[1773538377608,0.0014,70890.0,70880.0,0.05696201]
[1773538378119,0.0014,70889.0,70880.0,0.05696201]
[1773538378706,0.07052285,70899.0,70880.0,0.05696201]
[1773538378904,0.0014,70898.0,70880.0,0.05696201]
[1773538379329,0.0014,70897.0,70880.0,0.05696201]
[1773538379529,0.00022001,70893.0,70880.0,0.05696201]
[1773538379943,0.0014,70892.0,70880.0,0.05696201]
[1773538380107,0.07053081,70891.0,70880.0,0.05696201]
[1773538380420,0.0014,70890.0,70880.0,0.05696201]
[1773538380812,0.07052859,70894.0,70880.0,0.05696201]
[1773538380813,0.07052715,70895.0,70882.0,0.05693171]
[1773538381134,0.02199337,70895.0,70882.0,0.05693171]
[1773538381719,0.02199337,70895.0,70881.0,0.07194076]
[1773538382042,0.02199337,70895.0,70882.0,0.0014]
[1773538382954,0.02199337,70895.0,70883.0,0.05693171]
[1773538386302,0.02199337,70895.0,70882.0,0.0014]
[1773538386792,0.02199337,70895.0,70882.0,0.05833171]
[1773538386958,0.02199337,70895.0,70883.0,0.0002]
[1773538387160,0.02221338,70895.0,70883.0,0.05713171]
[1773538388486,0.02221338,70895.0,70883.0,0.05698293]
[1773538390167,0.02221338,70895.0,70883.0,0.07058981]
[1773538390392,0.07052285,70899.0,70884.0,0.05693171]
[1773538390596,0.07052285,70899.0,70886.0,0.05693171]
[1773538391614,0.07192285,70899.0,70886.0,0.05693171]
[1773538392540,0.00022001,70903.0,70889.0,0.0596913]
[1773538392837,0.0706883,70904.0,70892.0,0.05693171]
[1773538395337,0.0706883,70904.0,70893.0,0.07052882]
[1773538399125,0.0001703,70904.0,70893.0,0.07052882]
[1773538399334,0.07213428,70908.0,70893.0,0.07052882]
[1773538399335,0.00022001,70922.0,70895.0,0.02353268]
[1773538399618,0.00022001,70922.0,70900.0,0.0596913]
[1773538399619,0.02697499,70915.0,70900.0,0.0596913]
[1773538399822,0.07050766,70915.0,70901.0,0.0014]
[1773538399968,0.07050766,70915.0,70902.0,0.07151368]
[1773538400170,0.07050656,70916.0,70902.0,0.07151368]
[1773538400529,0.07050656,70916.0,70902.0,0.07156932]
[1773538401167,0.00022001,70904.0,70902.0,0.07057551]
[1773538401415,0.07011656,70916.0,70902.0,0.07057551]
[1773538401632,0.00022001,70912.0,70903.0,0.00125126]
[1773538402006,0.00022001,70912.0,70904.0,0.07051788]
[1773538406237,0.00022001,70912.0,70904.0,0.07191788]
[1773538408640,0.00022001,70912.0,70904.0,0.07176914]
[1773538409794,0.00022001,70912.0,70902.0,0.07057551]
[1773538410093,0.00022001,70912.0,70903.0,0.0014]
[1773538410559,0.00022001,70912.0,70902.0,0.07057551]
[1773538410695,0.00022001,70912.0,70904.0,0.0014]
[1773538410893,0.06175387,70912.0,70903.0,0.0014]
[1773538411337,0.06175387,70912.0,70902.0,0.07057551]
[1773538411338,0.06153386,70911.0,70900.0,0.07192169]
[1773538411711,0.0014,70910.0,70900.0,0.07052169]
[1773538412078,0.06153386,70908.0,70897.0,0.0014]
[1773538412202,0.06153386,70908.0,70897.0,0.00010757]
[1773538412398,0.06153386,70908.0,70897.0,0.00150757]
[1773538413853,0.06153386,70908.0,70897.0,0.00010757]
[1773538414424,0.07051394,70908.0,70897.0,0.00010757]
[1773538414625,0.06153386,70907.0,70893.0,0.07072789]
[1773538414828,0.06164163,70907.0,70893.0,0.07072789]
[1773538415583,0.06164163,70907.0,70885.0,0.07073644]
[1773538415584,0.06164163,70907.0,70885.0,0.0002]
[1773538415838,0.06164163,70907.0,70876.0,0.07054538]
[1773538415839,0.06153386,70902.0,70876.0,0.07054538]
[1773538416052,0.06153386,70900.0,70876.0,0.07054538]
[1773538416253,0.06153386,70900.0,70877.0,0.07054449]
[1773538416392,0.06153386,70900.0,70876.0,0.07054538]
[1773538416998,0.06162276,70900.0,70877.0,0.07054405]
[1773538417196,0.06162276,70900.0,70878.0,0.07074347]
[1773538417744,0.06162276,70900.0,70878.0,0.0002]
[1773538418068,0.06153386,70887.0,70878.0,0.0002]
[1773538418244,0.06293386,70886.0,70878.0,0.0002]
[1773538420211,0.06153386,70884.0,70875.0,0.0002]
[1773538421532,0.06164157,70884.0,70875.0,0.0002]
[1773538422038,0.06164157,70884.0,70872.0,0.0002]